[Event "Stare Mesto Open-A 2022"]
[Site "Stare Mesto"]
[Date "2022.08.14"]
[Round "3.8"]
[White "Machacek, Jan"]
[Black "Szotkowski, Jakub"]
[Result "1/2-1/2"]
[ECO "B10"]
[WhiteElo "1985"]
[BlackElo "2344"]
[Annotator "TA"]
[PlyCount "92"]
[EventDate "2022.08.12"]
[EventType "swiss"]
[EventCountry "CZE"]
[SourceTitle "playchess.com"]
[Source "ChessBase"]
[SourceQuality "1"]
[TimeControl "40/5400+30:1800+30"]

{[%evp 11,92,47,41,28,19,22,25,24,34,25,30,29,39,8,14,14,26,-10,0,0,18,-15,20,0,26,33,36,0,11,7,21,10,14,0,0,-36,-25,-72,-14,-12,-16,-8,42,57,43,0,0,0,0,-56,-49,-120,-20,-108,-100,-127,-112,-112,-112,-1974,-1891,-6087,-6079,-1589,-22,-16,-22,-27,-14,-15,-14,-23,-38,-43,0,0,0,0,0,0,0,0,0]} 1. e4 {[%emt 0:00:04]} c6 {[%emt 0:00:15]} 2. Nc3 {[%emt 0:00:09]} d5 {[%emt 0:00:22]} 3. Nf3 {[%emt 0:00:09]} dxe4 {[%emt 0:04:13]} 4. Nxe4 {[%emt 0:00:11]} Bf5 {[%emt 0:00:29]} 5. Ng3 {[%emt 0:04:00]} Bg4 {[%emt 0:02:33]} 6. Bc4 {[%emt 0:00:13]} e6 {[%emt 0:00:39]} 7. h3 {[%emt 0:01:52] B11: Caro-Kann: Two Knights Variation.} Bxf3 {[%emt 0:00:42]} 8. Qxf3 {[%emt 0:00:03]} Nd7 {[%emt 0:00:44]} 9. Bb3 {[%emt 0:00:22] White has an edge.} Ngf6 {[%emt 0:05:10]} 10. d4 {[%emt 0:02:46] [#]} a5 $146 {[%emt 0:07:57]} ({Predecessor:} 10... Bd6 11. O-O Qc7 12. Ne4 Nxe4 13. Qxe4 Nf6 14. Qe2 O-O 15. Bg5 Be7 16. Rfe1 h6 {0-1 (57) Scarpino,A (1775)-Vives,G (2073) Villa Martelli 2014}) 11. c3 {[%emt 0:03:41]} Bd6 {[%emt 0:04:16]} 12. Bg5 {[%emt 0:05:19]} h6 {[%emt 0:08:54]} 13. Be3 {[%emt 0:04:26]} Qc7 {[%emt 0:01:13]} 14. O-O-O {[%emt 0:04:07]} Nb6 {[%emt 0:06:32]} 15. Kb1 {[%emt 0:04:22]} Nbd5 {[%emt 0:09:06]} (15... a4 $5 {[%cal Ra4b3]} 16. Bc2 a3 $11) 16. Bc1 {[%emt 0:01:31]} b5 {[%emt 0:08:37]} 17. Bc2 {[%emt 0:05:13]} Bf4 {[%emt 0:06:01]} 18. Ne2 {[%emt 0:02:32]} Bxc1 {[%emt 0:00:58]} 19. Rxc1 {[%emt 0:00:05]} a4 {[%emt 0:09:00]} 20. a3 {[%emt 0:01:13]} Nd7 {[%emt 0:03:37][%cal Bf6d7,Bd7b6,Bb6c4][%mdl 32]} 21. Rce1 {[%emt 0:03:02]} N7b6 {[%emt 0:01:32]} 22. Qd3 {[%emt 0:00:21]} (22. h4 {seems wilder.} Nc4 23. Qg3 O-O-O 24. Bd3) 22... Nc4 {[%emt 0:02:13]} 23. Rhf1 {[%emt 0:02:16]} g6 {[%emt 0:02:52]} 24. f4 {[%emt 0:01:54]} (24. Qd1 $11 {might be stronger.}) 24... Nde3 {[%emt 0:03:42] Pair of Knights!} ({Better is} 24... Qd6 $17) 25. Rf2 $1 $11 {[%emt 0:01:11]} O-O-O $36 {[%emt 0:01:13][%mdl 2048] Black has some pressure.} 26. Ng3 {[%emt 0:03:39]} g5 {[%emt 0:03:16]} (26... Nxc2 $11 27. Qxc2 c5) 27. Rxe3 $14 {[%emt 0:11:29]} gxf4 {[%emt 0:00:08]} 28. Ref3 {[%emt 0:00:12]} (28. Ree2 $5 fxg3 29. Rf3 $14) 28... Ne5 $1 {[%emt 0:03:02][%mdl 64] Pin} 29. Qf1 {[%emt 0:07:41]} Nxf3 {[%emt 0:00:42]} 30. Rxf3 {[%emt 0:00:02]} (30. Nh5 $1 $11 Ng5 31. Nxf4) 30... fxg3 $15 {[%emt 0:00:15]} 31. Rxf7 {[%emt 0:00:07] [#]} (31. c4 $1 $15) 31... Rd7 {[%emt 0:02:46]} (31... Qd6 $1 $17 {Strongly threatening ...Rhf8.} 32. Bxa4 Rhf8) 32. Rxd7 {[%emt 0:05:07]} (32. Rf6 $11) 32... Qxd7 $11 {[%emt 0:00:16][%mdl 4096] Endgame KQR-KQB} 33. Qf6 {[%emt 0:00:03] [#]} Re8 {[%emt 0:01:03]} 34. Qg6 {[%emt 0:00:58]} Rf8 {[%emt 0:01:08] And now ...Rf1+ would win.} 35. Qxg3 $2 {[%emt 0:02:11][%mdl 8192]} (35. Bd3 $17) 35... Rf1+ $19 {[%emt 0:00:15]} 36. Ka2 {[%emt 0:00:02]} Qd5+ {[%emt 0:00:15]} 37. b3 {[%emt 0:00:02]} Rg1 $2 {[%emt 0:01:11]} (37... axb3+ $19 38. Bxb3 Qf5) 38. Qg8+ $11 {[%emt 0:00:06]} Kb7 {[%emt 0:01:08]} 39. Qf7+ {[%emt 0:00:07]} Kb6 {[%emt 0:00:13]} 40. Qf8 $1 {[%emt 0:00:54]} axb3+ {[%emt 0:00:39]} 41. Kb2 {[%emt 0:30:02]} Kc7 {[%emt 0:08:38]} 42. Qf7+ {[%emt 0:00:00]} Kc8 {[%emt 0:07:56]} (42... Qd7 $5 {[%cal Rd7f7]} 43. Qf2 Rh1 44. Bxb3 Kb7 $15) 43. Qe8+ {[%emt 0:00:00] The position is equal.} Kb7 {[%emt 0:00:13]} 44. Qf7+ {[%emt 0:00:00]} Ka6 {[%emt 0:00:07]} 45. Qc7 {[%emt 0:00:00]} bxc2 {[%emt 0:08:04][%csl Gg1][%cal Rc2c1]} 46. Qc8+ {[%emt 0:00:00]} Ka7 {[%emt 0:00:02] Weighted Error Value: White=0.48/Black=0.31} 1/2-1/2

[Event "Stare Mesto Open-A 2022"]
[Site "Stare Mesto"]
[Date "2022.08.15"]
[Round "4.1"]
[White "Husek, Martin"]
[Black "Babula, Vlastimil"]
[Result "1/2-1/2"]
[ECO "D10"]
[WhiteElo "2132"]
[BlackElo "2571"]
[Annotator "TA"]
[PlyCount "52"]
[EventDate "2022.08.12"]
[EventType "swiss"]
[EventCountry "CZE"]
[SourceTitle "playchess.com"]
[Source "ChessBase"]
[SourceQuality "1"]
[TimeControl "40/5400+30:1800+30"]

{[%evp 17,52,25,35,14,12,5,21,6,16,-12,0,0,5,-37,-12,-20,-18,-20,-34,-27,-41,-48,-50,-49,-34,-19,0,0,0,0,0,0,0,0,0,0,0]} 1. d4 {[%emt 0:03:27]} d5 {[%emt 0:00:14]} 2. c4 {[%emt 0:00:30]} c6 {[%emt 0:00:00]} 3. Nc3 {[%emt 0:01:46]} Nf6 {[%emt 0:00:03]} 4. cxd5 cxd5 5. Bf4 {[%emt 0:03:12]} Nc6 {[%emt 0:00:42]} 6. e3 {[%emt 0:00:09]} a6 {[%emt 0:00:25]} 7. Bd3 {[%emt 0:00:22]} Bg4 {[%emt 0:00:32]} 8. Nge2 {[%emt 0:00:00]} e6 {[%emt 0:00:00]} 9. O-O {[%emt 0:00:09]} Be7 {[%emt 0:03:03]} 10. Bg3 {[%emt 0:11:07] D10: Slav Defence: 3 cxd5 (without early Nf3) and 3 Nc3.} Bh5 {[%emt 0:03:05]} 11. f3 {[%emt 0:04:49]} Bg6 {[%emt 0:03:00] [#]} 12. Bxg6 $146 {[%emt 0:14:30]} ({Predecessor:} 12. Nf4 O-O 13. Nxg6 hxg6 14. Rc1 Rc8 15. Qe2 Nd7 16. Bf2 Nb6 17. Rcd1 Nb4 18. Bb1 {1-0 (60) Laznicka,V (2662)-Maghsoodloo,P (2649) Batumi 2018}) 12... hxg6 {[%emt 0:00:09]} 13. e4 {[%emt 0:02:04]} dxe4 {[%emt 0:27:45]} 14. fxe4 {[%emt 0:00:16]} Ng4 {[%emt 0:04:13]} 15. Qd2 {[%emt 0:07:34] Inhibits Ne3.} e5 {[%emt 0:05:19] [#] Hoping for ...Bg5.} 16. Nd5 {[%emt 0:07:07]} Nxd4 {[%emt 0:04:30]} 17. Nxd4 {[%emt 0:24:53]} Bc5 {[%emt 0:00:19]} 18. Bxe5 {[%emt 0:07:14]} Nxe5 {[%emt 0:00:27]} 19. Rac1 {[%emt 0:00:53]} Rc8 {[%emt 0:18:37] [#] aiming for ...Bxd4+.} 20. h3 {[%emt 0:02:49]} Ba7 {[%emt 0:11:21] Threatens to win with ...Nc6.} 21. Kh1 {Strongly threatening Qb4.} Qd7 {[%emt 0:00:02] The position is equal.} 22. Rxc8+ {[%emt 0:03:06]} Qxc8 {[%emt 0:03:51]} 23. Rc1 {[%emt 0:03:57]} ({Wrong is} 23. Qb4 $2 Nc6 24. Nf5 gxf5 $19) 23... Qd7 {[%emt 0:00:41]} 24. Rc7 {[%emt 0:00:24]} Rxh3+ $1 {[%emt 0:00:08]} 25. gxh3 {[%emt 0:00:06]} Qxh3+ {[%emt 0:00:31]} 26. Qh2 Qf1+ {Weighted Error Value: White=0.07 (flawless) /Black=0.08 (flawless)} 1/2-1/2

[Event "Stare Mesto Open-A 2022"]
[Site "Stare Mesto"]
[Date "2022.08.15"]
[Round "4.2"]
[White "Sramek, Vojtech"]
[Black "Haba, Petr"]
[Result "1/2-1/2"]
[ECO "B14"]
[WhiteElo "2249"]
[BlackElo "2453"]
[Annotator "TA"]
[PlyCount "100"]
[EventDate "2022.08.12"]
[EventType "swiss"]
[EventCountry "CZE"]
[SourceTitle "playchess.com"]
[Source "ChessBase"]
[SourceQuality "1"]
[TimeControl "40/5400+30:1800+30"]

{[%evp 11,100,0,15,0,0,0,0,0,5,0,20,33,23,29,36,11,18,19,8,11,19,3,14,22,49,12,14,0,18,17,13,14,12,4,16,11,8,-17,-23,-30,-25,-35,-31,-33,-26,-23,-19,-41,-41,-40,-34,-61,-35,-38,-20,-20,-20,-28,-20,-26,-33,-27,-24,-40,-42,-44,-44,-44,-44,-51,-50,-52,-52,-53,-54,-57,-34,-57,-60,-69,-69,-69,-69,-69,-69,-69,-69,-69,-69,-69,-69]} 1. e4 {[%emt 0:00:04]} c6 {[%emt 0:00:23]} 2. d4 {[%emt 0:00:07]} d5 {[%emt 0:00:05]} 3. exd5 {[%emt 0:00:23]} cxd5 {[%emt 0:00:05]} 4. c4 {[%emt 0:00:10]} Nf6 {[%emt 0:00:16]} 5. Nc3 {[%emt 0:00:12]} g6 {[%emt 0:00:58]} 6. cxd5 {[%emt 0:01:09]} Nxd5 {[%emt 0:00:23]} 7. Qb3 {[%emt 0:01:24] B14: Caro-Kann: Panov-Botvinnik Attack with 5...e6 and 5...g6.} Nb6 {[%emt 0:00:46]} 8. Be3 {[%emt 0:01:07] 8.Nf3 is becoming the main line.} Bg7 {[%emt 0:01:03]} 9. Rd1 {[%emt 0:01:07] The position is equal.} O-O {[%emt 0:01:24]} 10. Nf3 {[%emt 0:06:42]} N8d7 {[%emt 0:03:07]} 11. Be2 {[%emt 0:06:40]} Nf6 {[%emt 0:00:25][%cal Bd7f6,Bf6e8,Be8d6,Bd6f5,Bf5d4][%mdl 32]} 12. d5 {[%emt 0:01:39] Inhibits Be6.} Ne8 {[%emt 0:10:03]} 13. O-O {[%emt 0:02:14]} Bg4 {[%emt 0:01:18]} 14. h3 {[%emt 0:07:05]} Bxf3 {[%emt 0:00:30]} 15. Bxf3 {[%emt 0:00:07]} Nd6 {[%emt 0:00:28]} 16. Rfe1 {[%emt 0:08:45]} Re8 {[%emt 0:00:25] [#]} 17. Be2 $146 {[%emt 0:03:42]} ({Predecessor:} 17. Bg4 Bf6 18. Bf4 Nbc4 19. Ne4 Nxe4 20. Rxe4 Nd6 21. Re2 h5 22. Bf3 Qd7 23. g4 hxg4 24. Bxg4 {0-1 (57) Badelka,O (2440)-Goganov,A (2589) Cheliabinsk 2021}) 17... Nbc8 {[%emt 0:12:04]} 18. Rc1 {[%emt 0:06:04]} Nf5 {[%emt 0:20:53]} 19. Bf4 {[%emt 0:03:25]} Ncd6 {[%emt 0:02:24]} 20. Nb5 {[%emt 0:05:32] [#] And now Nc7 would win.} Nd4 {[%emt 0:01:58]} 21. Nxd4 {[%emt 0:08:46]} Bxd4 {[%emt 0:00:05]} 22. Red1 {[%emt 0:11:00]} Qb6 {[%emt 0:02:55]} 23. Qxb6 {[%emt 0:00:46]} Bxb6 {[%emt 0:00:05]} 24. Bxd6 {[%emt 0:00:45]} exd6 {[%emt 0:00:08]} 25. Bf3 {[%emt 0:01:00]} a5 {[%emt 0:15:11]} 26. a4 {[%emt 0:02:14]} Bc5 {[%emt 0:00:37]} 27. Rd2 {[%emt 0:04:15]} Re3 {[%emt 0:07:15]} (27... Rac8 $5 {[%cal Rc5f2]} 28. Kf1 Bb4 $11) 28. Kf1 {[%emt 0:07:18]} Rb3 {[%emt 0:05:09]} 29. Bd1 {[%emt 0:01:02]} Rb4 {[%emt 0:00:23]} 30. b3 {[%emt 0:02:52]} Re8 {[%emt 0:02:14]} 31. Bc2 {[%emt 0:02:23]} Rf4 {[%emt 0:01:11]} 32. g3 {[%emt 0:03:46]} Rf3 {[%emt 0:03:00]} 33. Bd1 {[%emt 0:00:32]} Rf5 {[%emt 0:00:08]} 34. Bg4 {[%emt 0:01:16]} Rfe5 {[%emt 0:00:19]} 35. Re2 {[%emt 0:00:31]} b6 {[%emt 0:05:01]} 36. Rxe5 {[%emt 0:00:09]} dxe5 $15 {[%emt 0:00:06][%mdl 4096] Endgame KRB-KRB} 37. Rd1 {[%emt 0:01:04]} Rd8 {[%emt 0:00:32] Black is slightly better.} 38. Be2 {[%emt 0:00:23]} Kg7 {[%emt 0:00:55]} 39. Bc4 {[%emt 0:00:16]} f5 {[%emt 0:01:44]} 40. h4 {[%emt 0:01:09]} Kf6 {[%emt 0:01:29]} 41. Ke2 {[%emt 0:02:38]} Ke7 {[%emt 0:02:10]} 42. h5 {[%emt 0:10:19]} g5 {[%emt 0:01:52]} 43. f3 {[%emt 0:00:15]} Rf8 {[%emt 0:10:06]} 44. Rf1 {[%emt 0:01:07]} h6 {[%emt 0:04:01]} 45. g4 {[%emt 0:00:18]} Kd6 {[%emt 0:00:04]} 46. Bd3 $1 {[%emt 0:01:13]} fxg4 {[%emt 0:00:43]} ({Much worse is} 46... Kxd5 47. Bxf5 Rb8 48. Be4+ Kd6 49. Rd1+ Bd4 50. Rc1 $11) 47. fxg4 {[%emt 0:00:11]} Rxf1 {[%emt 0:00:09]} 48. Kxf1 {[%emt 0:00:05]} Kxd5 {[%emt 0:00:02]} 49. Ke2 {[%emt 0:00:37]} e4 {[%emt 0:00:13]} 50. Bc4+ {[%emt 0:00:18]} Ke5 {[%emt 0:00:09] Weighted Error Value: White=0.06 (flawless) /Black=0.05 (flawless)} 1/2-1/2

[Event "Stare Mesto Open-A 2022"]
[Site "Stare Mesto"]
[Date "2022.08.15"]
[Round "4.3"]
[White "Neuman, Petr"]
[Black "Murko, David"]
[Result "1-0"]
[ECO "D71"]
[WhiteElo "2378"]
[BlackElo "2213"]
[Annotator "TA"]
[PlyCount "67"]
[EventDate "2022.08.12"]
[EventType "swiss"]
[EventCountry "CZE"]
[SourceTitle "playchess.com"]
[Source "ChessBase"]
[SourceQuality "1"]
[TimeControl "40/5400+30:1800+30"]

{[%evp 9,67,12,18,17,22,11,23,23,23,18,23,1,12,8,16,-1,12,12,8,-22,-8,-24,-15,-20,-14,-5,-14,0,4,14,46,45,118,104,127,127,124,124,127,126,130,118,115,115,147,137,170,119,151,101,265,191,433,430,29992,29993,29995,29996,29996,29997]} 1. d4 {[%emt 0:00:05]} Nf6 {[%emt 0:00:05]} 2. c4 {[%emt 0:00:09]} g6 {[%emt 0:00:04]} 3. g3 {[%emt 0:00:11]} c6 {[%emt 0:00:34]} 4. Bg2 {[%emt 0:00:20]} d5 {[%emt 0:00:13]} 5. Qa4 {[%emt 0:00:19]} Nbd7 {[%emt 0:07:53]} 6. cxd5 {[%emt 0:01:42] D71: Fianchetto Grünfeld: 3 g3 d5 sidelines and 5 cxd5 (without Nf3).} Nb6 {[%emt 0:00:42]} 7. Qb3 {[%emt 0:06:41]} cxd5 {[%emt 0:01:23]} 8. Nf3 {[%emt 0:06:32][%cal Bg1f3,Bf3e5,Be5d3,Bd3c5][%mdl 32] White has an edge.} Bg7 {[%emt 0:01:47]} 9. O-O {[%emt 0:00:32]} O-O {[%emt 0:04:11]} 10. Ne5 {[%emt 0:02:36] [#]} Be6 $146 {[%emt 0:12:11]} ({Predecessor:} 10... Nfd7 11. Nf3 Nb8 12. Nc3 Nc6 13. Rd1 e6 14. Bf4 Bd7 15. Rac1 Rc8 16. Nb5 Na5 {½-½ (87) Andersen,M (2605)-Pantzar,M (2357) Helsingor 2019}) 11. Rd1 {[%emt 0:05:57]} Nfd7 {[%emt 0:05:13]} 12. Bf4 {[%emt 0:06:33]} f6 {[%emt 0:05:11]} 13. Nd3 {[%emt 0:01:14] With the idea Rc1.} Bf7 $1 {[%emt 0:04:14]} 14. Nc3 {[%emt 0:01:57][%cal Rc3d5]} e5 {[%emt 0:15:10]} 15. Be3 {[%emt 0:01:44] [#] Black must now prevent dxe5.} (15. Bc1 $5 {[%cal Rd4e5]}) 15... e4 {[%emt 0:00:39]} 16. Nc5 {[%emt 0:04:07]} Nc4 {[%emt 0:09:12]} 17. Qxb7 {[%emt 0:19:31]} Nxe3 {[%emt 0:07:18]} 18. fxe3 {[%emt 0:04:01]} Nxc5 {[%emt 0:02:04]} 19. dxc5 {[%emt 0:00:05][%cal Rc3d5]} Qc8 {[%emt 0:00:19]} 20. Qxc8 {[%emt 0:01:25]} Rfxc8 {[%emt 0:00:12]} (20... Raxc8 $14 21. b4 (21. Nxd5 Rxc5 22. Bxe4 f5 $11) 21... Rcd8) 21. Nxd5 $16 {[%emt 0:00:19]} Rxc5 {[%emt 0:00:36]} 22. Bxe4 {[%emt 0:00:11]} ({Inferior is} 22. Ne7+ Kf8 23. b4 (23. Bxe4 $2 Re8 $19) 23... Rc4 $15) 22... Rb8 {[%emt 0:05:03]} 23. b4 {[%emt 0:02:08]} Rc4 {[%emt 0:00:30]} 24. Bf3 {[%emt 0:00:05]} Kf8 {[%emt 0:00:28]} 25. a3 {[%emt 0:01:01]} f5 {[%emt 0:02:00]} 26. Rab1 {[%emt 0:00:27]} Be8 {[%emt 0:05:11]} 27. Nf4 {[%emt 0:05:43]} Ke7 {[%emt 0:00:16] Against Ne6} 28. Rd5 {[%emt 0:00:21]} (28. Rbc1 $18 Rxc1 29. Rxc1) 28... Rb5 {[%emt 0:01:46]} 29. Rbd1 {[%emt 0:02:33]} ({Better is} 29. Rd3) 29... Bb2 $2 {[%emt 0:02:13] This costs Black the game.} (29... g5 $16 {was called for.}) 30. Rd8 {[%emt 0:04:12][%cal Bd5d8,Bd8a8,Ba8a7,Ba7h7][%mdl 32] [#] Ra8 is the strong threat.} a6 $2 {[%emt 0:03:27]} (30... Rc7 31. a4 Rxb4) 31. Ra8 $18 {[%emt 0:00:31] Ra7+ would kill now.} Bxa3 {[%emt 0:01:27]} (31... Rc1 $18) 32. Ra7+ {[%emt 0:00:07] White mates.} Kf6 {[%emt 0:00:23]} 33. Rd6+ {[%emt 0:00:16]} Kg5 {[%emt 0:00:19]} 34. Rxh7 {[%emt 0:00:13] Weighted Error Value: White=0.09 (flawless) /Black=0.48} 1-0

[Event "Stare Mesto Open-A 2022"]
[Site "Stare Mesto"]
[Date "2022.08.15"]
[Round "4.4"]
[White "Cerveny, Martin"]
[Black "Horvath, Tomas"]
[Result "1/2-1/2"]
[ECO "A46"]
[WhiteElo "2396"]
[BlackElo "2094"]
[Annotator "TA"]
[PlyCount "109"]
[EventDate "2022.08.12"]
[EventType "swiss"]
[EventCountry "CZE"]
[SourceTitle "playchess.com"]
[Source "ChessBase"]
[SourceQuality "1"]
[TimeControl "40/5400+30:1800+30"]

{[%evp 9,109,10,0,16,9,6,25,25,25,23,26,12,7,6,38,25,12,12,0,0,-14,0,35,39,48,35,30,30,104,101,118,75,83,6,32,0,0,-27,-38,-31,-24,-27,-41,-23,-21,-18,0,0,0,-10,0,-15,-6,-15,0,0,0,0,0,0,0,-13,-10,-42,-33,-45,-8,-31,-31,-34,-27,-71,-39,-70,-70,-70,-70,-116,-45,-104,-27,-214,-202,-212,-209,-260,-260,-260,-253,-253,-251,-216,-100,-238,-102,-354,-106,-106,-106,-106,-106,-106]} 1. d4 {[%emt 0:00:03]} Nf6 {[%emt 0:05:28]} 2. Nf3 {[%emt 0:00:23]} e6 {[%emt 0:00:05]} 3. g3 {[%emt 0:01:00]} b5 {[%emt 0:01:20]} 4. Qd3 {[%emt 0:02:47]} a6 {[%emt 0:04:21]} 5. e4 {[%emt 0:01:13]} Bb7 {[%emt 0:01:04]} 6. e5 {[%emt 0:00:39] A46: 1 d4 Nf6 2 Nf3 e6: Torre, London and Colle Systems.} Nd5 {[%emt 0:02:38]} 7. Bg2 {[%emt 0:00:46]} Be7 {[%emt 0:04:10]} 8. O-O {[%emt 0:03:36] White has an edge.} d6 {[%emt 0:00:49]} 9. a4 {[%emt 0:01:20] [#]} b4 $146 {[%emt 0:02:20]} ({Predecessor:} 9... Nc6 10. Rd1 b4 11. a5 Qb8 12. Nbd2 Qa7 13. Ne4 Rd8 14. Qe2 O-O 15. h4 Rd7 {0-1 (30) Schmidt,P (2405)-Schlosser,P (2485) Kecskemet 1992}) 10. c4 {[%emt 0:00:19]} bxc3 $1 {[%emt 0:02:14]} 11. bxc3 {[%emt 0:00:17]} a5 {[%emt 0:01:08]} 12. Qb5+ {[%emt 0:01:23]} Bc6 {[%emt 0:00:44]} 13. Qb3 $36 {[%emt 0:03:03][%mdl 2048] White has good play.} Nd7 {[%emt 0:07:14]} 14. c4 {[%emt 0:07:28]} Rb8 {[%emt 0:06:58]} 15. Qd1 {[%emt 0:01:04]} Rxb1 {[%emt 0:07:24]} 16. Rxb1 {[%emt 0:03:25]} Nc3 {[%emt 0:00:09][%csl LRa4,LRb1,LRd1]} 17. Qc2 {[%emt 0:01:28]} Nxb1 {[%emt 0:01:11]} 18. d5 {[%emt 0:00:10]} exd5 {[%emt 0:04:52]} 19. e6 $16 {[%emt 0:01:22] Hoping for Nd4.} Nc5 {[%emt 0:11:49][%cal Oc5e6]} 20. exf7+ {[%emt 0:00:14]} Kxf7 {[%emt 0:00:47][%cal Og7g6]} 21. cxd5 {[%emt 0:02:32]} (21. Nd4 $16 Bb7 22. Qxb1) 21... Bd7 {[%emt 0:01:23]} 22. Qxb1 {[%emt 0:00:37]} (22. Be3 $5 {[%cal Re3c5]}) 22... Qb8 {[%emt 0:02:02]} 23. Ba3 {[%emt 0:07:48]} Qxb1 {[%emt 0:07:42]} 24. Rxb1 {[%emt 0:02:27]} Nxa4 {[%emt 0:01:21]} 25. Rb7 {[%emt 0:00:14]} Rc8 {[%emt 0:00:41]} 26. Ra7 {[%emt 0:01:06]} Nb6 {[%emt 0:00:55]} 27. Rxa5 {[%emt 0:01:56]} Ra8 {[%emt 0:01:54]} (27... Nc4 $5 28. Ra7 Rb8 $15) 28. Rxa8 {[%emt 0:03:45]} Nxa8 {[%emt 0:00:04]} 29. Nd2 {[%emt 0:03:09]} Nb6 {[%emt 0:00:49]} 30. Bb4 {[%emt 0:00:30]} Bc8 {[%emt 0:05:31]} 31. Ba5 {[%emt 0:00:09]} Bb7 {[%emt 0:01:18]} 32. Bxb6 {[%emt 0:00:30]} cxb6 $11 {[%emt 0:00:04][%mdl 4096] Endgame KBB-KBN} 33. Nc4 {[%emt 0:00:27]} b5 {[%emt 0:00:38]} 34. Na5 {[%emt 0:00:05]} Ba8 {[%emt 0:03:04]} 35. Kf1 {[%emt 0:02:41]} Bd8 {[%emt 0:02:01]} 36. Nb3 {[%emt 0:00:02]} Kf6 {[%emt 0:00:54]} 37. Ke2 {[%emt 0:02:02]} g5 {[%emt 0:01:15]} 38. f4 {[%emt 0:00:18]} gxf4 {[%emt 0:00:46]} 39. gxf4 {[%emt 0:00:02]} Bb6 {[%emt 0:00:35] next ...Kf5 is good for Black.} 40. Be4 {[%emt 0:00:46]} Bb7 {[%emt 0:01:51]} 41. Kd3 {[%emt 0:32:45]} h6 {[%emt 0:33:26]} 42. Nd4 {[%emt 0:03:02]} b4 {[%emt 0:03:04][%cal Bb5b4,Bb4b3][%mdl 32] ...Ba6+ is the strong threat.} 43. Nc6 {[%emt 0:03:33]} (43. Nf5 $15) 43... Bg1 {[%emt 0:00:00]} ({Better is} 43... Ba6+ $17 44. Kd2 Bc5) 44. h4 {[%emt 0:00:00]} (44. Nxb4 $15 Bxh2 45. Ke3) 44... Bf2 {[%emt 0:00:00]} (44... Bc5 $17) 45. h5 $2 {[%emt 0:00:00]} (45. Nxb4 $11 Bxh4 46. Ke2) 45... Ba6+ $19 {[%emt 0:00:00]} 46. Kd2 {[%emt 0:00:00]} b3 {[%emt 0:00:00]} 47. Nb4 {[%emt 0:00:00]} Bc8 {[%emt 0:00:00] White must now prevent ...Bf5.} 48. Kc3 {[%emt 0:00:00]} Be3 {[%emt 0:00:00]} 49. Nd3 {[%emt 0:00:00]} Bg4 {[%emt 0:00:00]} 50. Bg6 {[%emt 0:00:00] [#]} Bf3 {[%emt 0:00:00] This bishop pair is nice.} (50... Bd1 $1 $19 {Strongly threatening ...Bc2.} 51. Kc4 Bf3 52. Kxb3 Bxd5+ 53. Kc2 Be6) 51. Kc4 {[%emt 0:00:00]} (51. Kxb3 $17 Bxd5+ 52. Kc2) 51... Bd2 {[%emt 0:00:00]} (51... Bd1 $19 {and Black stays clearly on top. And now ...Ke7 would win.} 52. Kc3 Bf3 53. Kxb3 Bxd5+ 54. Kb4 Bd4) 52. Kd4 $2 {[%emt 0:00:00][%mdl 8192]} (52. Kxb3 $17 Bxd5+ 53. Kc2) 52... Bd1 $2 {[%emt 0:00:00]} (52... Ke7 $19 {has better winning chances. Threatens to win with ...Bg4.} 53. Kc4 Kf6 54. Kxb3 Bxd5+ 55. Kc2 Be3) 53. Nf2 $17 {[%emt 0:00:00] [#] Threatening mate with Ne4+. Black is better.} Bc2 {[%emt 0:00:00]} 54. Ne4+ {[%emt 0:00:00]} Bxe4 {[%emt 0:00:00]} 55. Kxe4 {[%emt 0:00:00] Weighted Error Value: White=0.28 (precise) /Black=0.27 (precise)} 1/2-1/2